Cogmind - Beta 16.1 @@@ ROGUE MODE // 2026.01.27 @ 13:42:47 Player: JuustuToug Result: Destroyed by DT-ZMQ(z) with Makeshift Laser Performance ------------- Evolutions (3) 1500 Regions Visited (11) 2200 Robots Destroyed (218) 1090 Value Destroyed (7567) 7567 Prototype IDs (23) 460 Alien Tech Used (0) 0 Bonus (1363) 1363 TOTAL SCORE: 14180 Bonus ------- High Alert Combat Kills 631 Follower Combat Kills 70 Entered Garrisons 200 Met Imprinter 300 Acquired ECA 300 Friendly Fire -138 Cogmind --------- Core Integrity 0/700 Matter 290/300 Energy 32/100 System Corruption 8% Temperature Cool (9) Movement Core (500) Ox9 Location -7/Zion Parts ------- > --- POWER (1) -------- (None) > --- PROPULSION (3) --- (None) > --- UTILITY (7) ------ Improved Heat Sink Large Storage Unit Makeshift Utility Shielding System Shield > --- WEAPON (2) ------- RU-N14's Throwing Claymores > --- INVENTORY (15) --- Improved Cooling System Improved Signal Interpreter Encrypted Comm Array Hacking Suite Makeshift System Shield Precision Beam Rifle Barrage Gun Makeshift Shrapnel Gun RU-N14's Throwing Claymores (8) Spear Peak State ------------ > --- POWER ------------ Light Deuterium Engine > --- PROPULSION ------- Carbon-fiber Leg Improved Carbon-fiber Leg Improved Titanium Leg > --- UTILITY ---------- Improved Cooling System Large Storage Unit Makeshift Utility Shielding Layered Light Armor Plating Hacking Suite System Shield > --- WEAPON ----------- Compact Ion Cannon RU-N14's Throwing Claymores > --- INVENTORY -------- Improved Cooling System Improved Signal Interpreter Encrypted Comm Array Hacking Suite Makeshift System Shield Precision Beam Rifle Advanced Beam Cannon Advanced Beam Cannon RU-N14's Throwing Claymores RU-N14's Throwing Claymores Spear [Rating: 50] Favorites ----------- Power Cooled Ion Engine Engine Cooled Ion Engine Power Core Fission Core Propulsion Light Treads Treads Light Treads Leg Improved Carbon-fiber Leg Flight Unit Improved VTOL Module Utility Large Storage Unit Device Seismic Detector Storage Large Storage Unit Processor Core Analyzer Hackware Hacking Suite Protection Improved Light Armor Plating Weapon Advanced Beam Cannon Energy Gun Small Laser Energy Cannon Advanced Beam Cannon Ballistic Gun Heavy Assault Rifle Launcher Grenade Launcher Special Weapon RU-N14's Throwing Claymores Build | -11 -10 -9 -9 -8 -8 -8 -8 -7 -7 -7 -7 ------- Run | Yrd Mat Mat Min Mat Gar Mat Sto Fac Low Low Zio Slots Evolved 6 | . . 2 . 2 . . . 2 . . . Power . | . . . . . . . . . . . . Propulsion 1 | . . . . 1 . . . . . . . Utility 5 | . . 2 . 1 . . . 2 . . . Weapon . | . . . . . . . . . . . . Parts Attached 117 | 8 14 28 . 11 10 15 5 3 1 6 16 Power 13 | 1 3 3 . . 1 1 . . . 1 3 Engine 11 | 1 3 3 . . . 1 . . . 1 2 Core 2 | . . . . . 1 . . . . . 1 Reactor . | . . . . . . . . . . . . Propulsion 36 | 2 4 8 . 4 5 5 1 . . 2 5 Treads 22 | 2 2 8 . 4 5 1 . . . . . Leg 13 | . 2 . . . . 4 . . . 2 5 Wheel . | . . . . . . . . . . . . Hover . | . . . . . . . . . . . . Flight 1 | . . . . . . . 1 . . . . Utility 34 | 2 4 9 . 3 2 5 1 1 1 2 4 Device 17 | 1 1 6 . 1 2 3 . . 1 1 1 Storage 6 | 1 3 . . 1 . . 1 . . . . Processor 2 | . . . . . . 1 . . . 1 . Hackware 4 | . . 2 . 1 . 1 . . . . . Protection 5 | . . 1 . . . . . 1 . . 3 Artifact . | . . . . . . . . . . . . Weapon 34 | 3 3 8 . 4 2 4 3 2 . 1 4 Energy Gun 7 | 2 2 1 . . . 1 1 . . . . Energy Cannon 13 | . 1 2 . 2 2 2 1 1 . 1 1 Ballistic Gun 6 | 1 . 3 . 1 . . 1 . . . . Ballistic Cannon . | . . . . . . . . . . . . Launcher 5 | . . 2 . 1 . 1 . 1 . . . Special Weapon 3 | . . . . . . . . . . . 3 Impact Weapon . | . . . . . . . . . . . . Slashing Weapon . | . . . . . . . . . . . . Piercing Weapon . | . . . . . . . . . . . . Special Melee Weapon . | . . . . . . . . . . . . Unidentified Prototypes 8 | . . 3 . . . . 4 . . . 1 Parts Lost 45 | . 6 5 . . 4 5 . . . 5 20 Power 7 | . 2 . . . . 1 . . . . 4 Propulsion 13 | . 2 . . . 3 1 . . . 1 6 Utility 13 | . . 3 . . . 1 . . . 3 6 Weapon 12 | . 2 2 . . 1 2 . . . 1 4 Highest Loss Streak 12 | . 3 2 . . 1 2 . . . 4 12 To Critical Strikes 1 | . . . . . 1 . . . . . . Average Backups 13 | 1 5 14 15 14 14 14 14 13 13 13 14 Power . | . . . 1 1 1 . 1 1 1 1 . Propulsion 2 | . . 3 4 3 1 1 2 2 2 1 . Utility 5 | . 2 4 3 6 8 9 8 6 6 5 5 Weapon 4 | . 2 5 5 3 3 2 3 4 4 4 6 Tool/Special . | . . . . . . . . . . . . Unused Backups 45 | . . 17 1 6 1 4 5 1 . . 10 Power 3 | . . 3 . . . . . . . . . Propulsion 7 | . . 6 . . . 1 . . . . . Utility 14 | . . 2 . 1 1 2 2 1 . . 5 Weapon 19 | . . 6 1 4 . 1 3 . . . 4 Tool/Special 2 | . . . . 1 . . . . . . 1 Average Slot Usage (%) 98 | . 98 99 100 98 99 99 99 98 100 97 91 Engine 8 | . 13 11 11 9 2 5 9 7 7 7 6 Core 1 | . . . . . 6 3 . . . . . Treads 13 | . 22 21 22 26 26 5 . . . . . Leg 10 | . 5 . . . . 21 26 22 23 22 22 Device 16 | . 14 16 22 18 18 9 9 14 15 17 21 Storage 9 | . 14 11 11 9 9 9 9 7 7 7 7 Processor 2 | . . . . . . 8 9 7 7 3 1 Hackware 13 | . . 12 11 16 18 18 18 15 15 15 14 Protection 2 | . . 3 . . . . . 6 7 5 6 Energy Gun 3 | . 19 2 . . . 5 6 3 . . . Energy Cannon 11 | . 7 8 11 15 17 11 11 10 15 14 8 Ballistic Gun 3 | . . 10 11 2 . . . . . . . Peak Build Rating 50 | 7 8 24 23 30 35 42 43 47 46 46 50 Average Rating 29 | 5 7 19 23 27 32 36 39 46 45 43 41 On Entrance 27 | . 7 8 23 23 27 31 38 43 46 46 43 Avg Prop Armor Cover (%) 8 | . 8 . . . . . . . . . 6 Naked Turns . | . . . . . . . . . . . . Heaviest Build 47 | 12 31 41 37 40 44 40 40 42 42 47 43 Greatest Support 69 | 40 40 46 46 69 63 60 51 51 51 51 53 Greatest Overweight (x) 2 | . 1 1 . . . 2 1 . . 1 1 Average Overweight (x) . | . . . . . . . . . . . . Largest Inventory Capacity 15 | 8 15 15 15 15 15 15 15 15 15 15 15 Average Capacity 14 | 7 12 15 15 15 15 15 15 15 15 15 15 Most Carried 15 | 3 12 15 15 15 15 15 15 15 14 15 15 Average Carried 13 | 1 5 14 15 14 14 14 14 13 13 13 14 Final Capacity 15 | 8 15 15 15 15 15 15 15 15 15 15 15 Final Carried 15 | 3 10 15 15 15 14 15 15 13 14 12 10 Class Distribution -------------------- 60% | Hacker-Mutant 26% | Mutant 13% | Scavenger-Mutant Dominant Class ---------------- Mutant | -10/Materials Scavenger-Mutant | -9/Materials Mutant | -9/Mines Hacker-Mutant | -8/Materials Hacker-Mutant | -8/Garrison Hacker-Mutant | -8/Materials Hacker-Mutant | -8/Storage Hacker-Mutant | -7/Factory Hacker-Mutant | -7/Lower Caves Hacker-Mutant | -7/Lower Caves Hacker-Mutant | -7/Zion Resources | -11 -10 -9 -9 -8 -8 -8 -8 -7 -7 -7 -7 ----------- Run | Yrd Mat Mat Min Mat Gar Mat Sto Fac Low Low Zio Matter Collected 2682 | 280 172 754 21 259 226 289 306 75 10 135 155 Remotely . | . . . . . . . . . . . . Salvage Created 8408 | 146 815 1771 62 958 1165 1264 1119 181 54 384 489 Parts 432 | 10 38 108 9 57 59 50 48 10 1 15 27 Haulers Intercepted 19 | . 2 6 . 3 . 3 5 . . . . Recyclers Shooed 6 | . . 2 . 4 . . . . . . . Parts Field Recycled . | . . . . . . . . . . . . Retrieved Matter . | . . . . . . . . . . . . Parts Self-Destructed 15 | . . . . . . . . . . 15 . Prevented . | . . . . . . . . . . . . Parts Restored . | . . . . . . . . . . . . Kills | -11 -10 -9 -9 -8 -8 -8 -8 -7 -7 -7 -7 ------- Run | Yrd Mat Mat Min Mat Gar Mat Sto Fac Low Low Zio Combat Hostiles Destroyed 153 | . 16 36 4 20 30 18 11 3 . 5 10 Guns 26 | . 6 14 . 1 . 4 1 . . . . Cannons 86 | . 10 15 4 8 23 11 10 . . 4 1 AOE 36 | . . 7 . 9 5 3 . 3 . 1 8 Classes Destroyed 20 | 2 7 1 1 1 2 1 . . . 1 4 Worker 6 | . 1 3 . . . 1 . 1 . . . Builder 3 | . 1 . . 2 . . . . . . . Tunneler 4 | 3 . . 1 . . . . . . . . Hauler 19 | . 2 6 . 3 . 3 5 . . . . Recycler 13 | 1 . 1 . 3 . 3 5 . . . . Operator 8 | . 1 2 . 2 . 1 2 . . . . Watcher 8 | . 1 3 . 1 . 2 1 . . . . Swarmer 38 | . 2 11 3 10 6 3 3 . . . . Grunt 72 | . 14 19 . 7 17 8 4 3 . . . Brawler 3 | . . . . . 3 . . . . . . Duelist 1 | . . . . 1 . . . . . . . Sentry 19 | . . 6 . 2 2 5 4 . . . . Demolisher 1 | . . . 1 . . . . . . . . Specialist 2 | . . . . . 2 . . . . . . Hunter 5 | . . . . . . 2 . . . 3 . Programmer 2 | . . . . . . . . . . 2 . Zionite 4 | . . . . . . . . . . . 4 Decomposer 2 | . . . . . . . . . 2 . . Tinkerer 1 | . . . . . . . . . . . 1 Thug 1 | . . . . . . . . . . . 1 Savage 1 | . . . . . . . . . . . 1 Butcher 2 | . . . . . . . . . . . 2 Wizard 1 | . . . . . . . . . . . 1 Fireman 1 | . . . . . . . . . . . 1 Mutant 3 | . . . . . . . . . . . 3 Best Kill Streak 9 | 4 5 7 3 9 6 3 5 3 . 2 9 Combat Bots Only 8 | . 3 6 3 4 6 3 4 3 . 2 8 Max Kills in Single Turn 4 | 1 1 3 1 4 2 2 1 2 1 1 3 Gunslinging . | . . . . . . . . . . . . Exploded 4 | . . 3 . 4 2 2 . 2 . 1 2 Melee . | . . . . . . . . . . . . Uniques/NPCs Destroyed 1 | . . . . . . . . . . . 1 Imprinter (-7/Zion) Combat | -11 -10 -9 -9 -8 -8 -8 -8 -7 -7 -7 -7 -------- Run | Yrd Mat Mat Min Mat Gar Mat Sto Fac Low Low Zio Hostile Shots Fired 936 | . 118 172 14 68 105 87 57 6 4 108 197 Missed 277 | . 25 36 5 18 31 27 20 5 2 42 66 Hits 659 | . 93 136 9 50 74 60 37 1 2 66 131 Melee 12 | . . . . . 3 . . . . . 9 Projectile 647 | . 93 136 9 50 71 60 37 1 2 66 122 AOE 3 | . . . 1 . . . . . . . 2 Critical Strikes 22 | . 1 1 . 4 4 2 3 . . 3 4 Part Disruptions 3 | . . . . . . . . . . . 3 Damage Taken 9556 | . 1084 1578 98 714 1092 944 556 14 . 1126 2350 Core 1626 | . 238 200 18 66 145 137 107 . . 190 525 Absorbed by Shields . | . . . . . . . . . . . . Redirected to Shielding 17 | . . . . . . . . . . . 17 Regen/Repaired (Parts) 584 | . . 300 . . . . 199 85 . . . Core Remaining (%) 41 | 100 4 . 45 . . . 17 . . . . Volleys Fired 556 | 10 66 106 8 51 105 81 60 15 6 32 16 Largest 2 | 2 2 2 2 2 2 2 2 2 2 2 2 Hottest 158 | 90 110 91 91 143 153 136 151 158 158 158 158 Shots Fired 1009 | 20 131 204 16 97 166 151 111 20 10 58 25 Gun 338 | 20 87 126 8 11 . 46 39 1 . . . Cannon 630 | . 44 73 8 81 160 101 63 16 10 55 19 Launcher 36 | . . 5 . 5 6 4 9 3 . 3 1 Special 5 | . . . . . . . . . . . 5 Kinetic 113 | . . 94 8 11 . . . . . . . Thermal 855 | 20 131 105 8 81 160 147 102 17 10 55 19 Explosive 34 | . . 5 . 5 6 4 9 . . . 5 Electromagnetic 7 | . . . . . . . . 3 . 3 1 Robot Hit Streak 23 | 10 15 13 9 10 11 10 23 3 1 8 10 Robot Miss Streak 5 | 4 5 4 1 4 5 4 1 2 5 4 1 Penetration Max 1 | . . . . 1 . . . . . . . Secondary Targets . | . . . . . . . . . . . . Shots Hit Robots 574 | 13 81 128 8 55 69 98 69 4 2 31 16 Core Hits 305 | 5 39 61 5 36 41 43 30 7 2 9 27 Critical Kills 6 | . . . . . 2 2 1 . . . 1 Critical Parts Destroyed 1 | . . 1 . . . . . . . . . Critical Strikes 20 | . 2 4 . . 2 5 3 . . . 4 Burn 10 | . 2 3 . . . 3 2 . . . . Meltdown 6 | . . . . . 2 2 1 . . . 1 Destroy 1 | . . 1 . . . . . . . . . Sever 3 | . . . . . . . . . . . 3 Melee Attacks . | . . . . . . . . . . . . Impact . | . . . . . . . . . . . . Slashing . | . . . . . . . . . . . . Piercing . | . . . . . . . . . . . . Sneak Attacks . | . . . . . . . . . . . . Combat Hostiles . | . . . . . . . . . . . . Follow-up Attacks . | . . . . . . . . . . . . Damage Inflicted 15290 | 155 1161 2757 222 2271 2240 2164 1461 257 46 1012 1544 Guns 3150 | 155 677 1219 47 125 . 472 437 18 . . . Cannons 8039 | . 472 1047 144 1132 1616 1462 1024 . 46 873 223 Explosions 3883 | . . 475 . 1009 624 228 . 239 . 139 1169 Melee . | . . . . . . . . . . . . Ramming 70 | . 12 16 31 5 . 2 . . . . 4 Kinetic 1105 | . . 933 47 125 . . . . . . . Thermal 10358 | 155 1149 1333 144 1132 1616 1934 1461 47 46 873 468 Explosive 3112 | . . 475 . 1009 624 228 . . . . 776 Electromagnetic 497 | . . . . . . . . 210 . 139 148 Impact . | . . . . . . . . . . . . Slashing 148 | . . . . . . . . . . . 148 Piercing . | . . . . . . . . . . . . Highest Corruption 8 | . 1 . . . . 1 3 . . 4 8 Average Corruption 1 | . 1 . . . . 1 1 . . 1 6 Corruption Purged . | . . . . . . . . . . . . Corruption Blocked . | . . . . . . . . . . . . Effects 29 | . 3 . . . . 1 11 . . 8 6 Message Errors 11 | . 1 . . . . . 8 . . 1 1 Matter Fused 7 | . 1 . . . . . 3 . . 1 2 Heat Flow Errors 4 | . 1 . . . . 1 . . . 2 . Energy Discharges 3 | . . . . . . . . . . . 3 Misfires 1 | . . . . . . . . . . 1 . Alerts 3 | . . . . . . . . . . 3 . Overload Shots . | . . . . . . . . . . . . Overflow Damage 297 | . . 4 . 85 51 52 14 . . 84 7 Projectiles 156 | . . 2 . 21 31 4 14 . . 84 . Explosions 141 | . . 2 . 64 20 48 . . . . 7 Melee . | . . . . . . . . . . . . Knockbacks . | . . . . . . . . . . . . Impact . | . . . . . . . . . . . . Kinetic . | . . . . . . . . . . . . Secondary . | . . . . . . . . . . . . Self-Inflicted Damage 201 | . . 31 . 42 25 . . . . 10 93 Shots 7 | . . 1 . 2 1 . . . . 1 2 Rammed 14 | . 6 3 3 2 . . . . . . . Targets Rammed 17 | . 6 3 3 2 . 2 . . . . 1 Kicked 3 | . . . . . . 2 . . . . 1 Crushed . | . . . . . . . . . . . . Highest Temperature 444 | 300 444 300 . 168 294 342 43 . 138 324 87 Average Temperature 96 | 152 124 102 . 53 75 103 24 . 48 105 43 Received Heat Transfer 3084 | . 516 609 . 378 522 468 273 9 . 45 264 Effects 19 | . 4 7 . . . 5 . . . 3 . Energy Bleed 4 | . . 3 . . . 1 . . . . . Interference 13 | . 2 4 . . . 4 . . . 3 . Short Circuit 1 | . 1 . . . . . . . . . . Damage (minor) 1 | . 1 . . . . . . . . . . Siege Activations . | . . . . . . . . . . . . Martial Activations . | . . . . . . . . . . . . Shielding Activations . | . . . . . . . . . . . . Robots Disrupted . | . . . . . . . . . . . . Combat Hostiles . | . . . . . . . . . . . . Robots Corrupted . | . . . . . . . . . . . . Combat Hostiles . | . . . . . . . . . . . . Parts Fried . | . . . . . . . . . . . . Impact Corruptions . | . . . . . . . . . . . . Robots Melted 8 | . . . . 2 2 2 1 . . . 1 Combat Hostiles 5 | . . . . 2 2 . . . . . 1 Parts Melted 41 | 1 9 6 . . 6 10 6 . . 3 . Heat Transferred 19344 | 421 2873 2814 259 1887 2512 3922 2738 87 74 1184 573 Parts Sabotaged . | . . . . . . . . . . . . Parts Stolen . | . . . . . . . . . . . . Parts Stripped . | . . . . . . . . . . . . Power Chain Reactions 2 | . . . . . . . . 1 . . 1 Alert | -11 -10 -9 -9 -8 -8 -8 -8 -7 -7 -7 -7 ------- Run | Yrd Mat Mat Min Mat Gar Mat Sto Fac Low Low Zio Maximum Alert Level 4 | . . 3 1 1 4 3 1 . . . . Low Security (%) 55 | 100 100 40 83 85 . . 90 100 . . . Level 1 15 | . . 7 16 14 14 57 9 . . . . Level 2 19 | . . 50 . . 22 40 . . . . . Level 3 5 | . . . . . 31 1 . . . . . Level 4 4 | . . . . . 31 . . . . . . Level 5 . | . . . . . . . . . . . . High Security . | . . . . . . . . . . . . Max Security . | . . . . . . . . . . . . Peak Influence 1539 | 10 127 700 291 366 1539 750 242 177 . . . Initial 750 | . . 40 261 . 234 750 187 29 . . . Average 296 | 1 49 343 67 114 886 390 95 40 . . . Influence Increases 5601 | 20 452 1276 95 724 1425 682 543 229 15 140 . Destroy 0b10 Robot/C 2900 | . 320 720 80 400 640 360 220 60 . 100 . Destroy 0b10 Robot/NC 310 | 20 30 75 5 55 . 50 65 5 . 5 . Destroy Leader 594 | . 66 198 10 78 20 120 72 10 . 20 . Allied During Kill 34 | . . . . 4 30 . . . . . . Successful Hack 221 | . 4 57 . 13 56 19 44 28 . . . Select Force Hacks 30 | . . 30 . . . . . . . . . Disable Machine 270 | . . 30 . 60 45 15 75 45 . . . Anti-Garrison Action 450 | . . . . . 450 . . . . . . Destroy Structure 417 | . 2 61 . 84 169 28 37 36 . . . Partial Spotted 45 | . . 15 . . . 30 . . . . . Lose Combat Pursuer 330 | . 30 90 . 30 15 60 30 45 15 15 . Influence Decreases 5601 | 20 355 703 765 364 246 1775 923 142 168 140 . Entered New Map 1734 | . . 57 409 . 126 789 259 37 57 . . Time Decay 2945 | 20 295 596 356 364 . 486 490 105 111 122 . Lost Part 208 | . 60 40 . . 40 50 . . . 18 . Lost Ally 90 | . . 10 . . 80 . . . . . . Purge Threat 624 | . . . . . . 450 174 . . . . Squads Dispatched 19 | . 2 8 . 2 . 3 2 2 . . . Investigation 9 | . 1 5 . . . 3 . . . . . Extermination 1 | . . . . . . . . 1 . . . Reinforcement 9 | . 1 3 . 2 . . 2 1 . . . Assault . | . . . . . . . . . . . . Garrison . | . . . . . . . . . . . . Intercept . | . . . . . . . . . . . . Searches Triggered . | . . . . . . . . . . . . Construction Impeded 1 | . . 1 . . . . . . . . . Haulers Reinforced . | . . . . . . . . . . . . Active Scanning Responses . | . . . . . . . . . . . . Cargo Convoy Interrupts . | . . . . . . . . . . . . Stealth | -11 -10 -9 -9 -8 -8 -8 -8 -7 -7 -7 -7 --------- Run | Yrd Mat Mat Min Mat Gar Mat Sto Fac Low Low Zio Distress Signals 13 | . 2 6 . 1 . 1 2 1 . . . Communications Jammed . | . . . . . . . . . . . . Distress Signals . | . . . . . . . . . . . . Times Spotted 245 | . 34 47 4 28 29 33 29 8 1 8 24 Peak Tracking Total 12 | . 5 7 2 5 6 4 5 4 1 4 12 Tactical Retreats 17 | . 2 4 . 2 1 3 2 1 1 1 . Traps | -11 -10 -9 -9 -8 -8 -8 -8 -7 -7 -7 -7 ------- Run | Yrd Mat Mat Min Mat Gar Mat Sto Fac Low Low Zio Traps Triggered 9 | . 2 2 . . 2 2 1 . . . . Indirectly . | . . . . . . . . . . . . Trap Hack Attempts . | . . . . . . . . . . . . Triggered . | . . . . . . . . . . . . Disarmed . | . . . . . . . . . . . . Reprogrammed . | . . . . . . . . . . . . Reused . | . . . . . . . . . . . . Traps Extracted . | . . . . . . . . . . . . Installed . | . . . . . . . . . . . . Triggered . | . . . . . . . . . . . . Machines | -11 -10 -9 -9 -8 -8 -8 -8 -7 -7 -7 -7 ---------- Run | Yrd Mat Mat Min Mat Gar Mat Sto Fac Low Low Zio Machines Disabled 30 | . . 2 . 4 12 1 5 3 1 . 2 Max in Single Turn 2 | . . 1 . 1 2 1 1 2 1 . 1 Garrison Access 1 | . . . . . . . 1 . . . . Garrison Relay 6 | . . . . . 6 . . . . . . Phase Generator 1 | . . . . . 1 . . . . . . Machines Repaired . | . . . . . . . . . . . . Machines Dismantled . | . . . . . . . . . . . . Machines Sabotaged . | . . . . . . . . . . . . Overloaded Fab Kills . | . . . . . . . . . . . . Hacking | -11 -10 -9 -9 -8 -8 -8 -8 -7 -7 -7 -7 --------- Run | Yrd Mat Mat Min Mat Gar Mat Sto Fac Low Low Zio Machines Accessed 49 | . 5 14 . 4 4 8 10 4 . . . Terminals 39 | . 5 10 . 3 4 7 8 2 . . . Fabricators . | . . . . . . . . . . . . Repair Stations 4 | . . 2 . . . . 1 1 . . . Recycling Units 1 | . . 1 . . . . . . . . . Scanalyzers 2 | . . 1 . . . . . 1 . . . Garrison Access 3 | . . . . 1 . 1 1 . . . . Total Hacks 211 | . 20 59 . 18 14 35 49 16 . . . Successful 118 | . 10 32 . 11 5 17 33 10 . . . Failed 91 | . 10 26 . 7 9 17 16 6 . . . Catastrophic 10 | . 2 3 . . 1 2 2 . . . . Database Lockouts 2 | . . 1 . . . 1 . . . . . Manual 148 | . 18 40 . 12 8 29 35 6 . . . Terminals 182 | . 20 46 . 16 14 34 44 8 . . . Fabricators . | . . . . . . . . . . . . Repair Stations 16 | . . 8 . . . . 4 4 . . . Recycling Units 1 | . . 1 . . . . . . . . . Scanalyzers 8 | . . 4 . . . . . 4 . . . Garrison Access 4 | . . . . 2 . 1 1 . . . . Terminal Hacks 51 | . 4 10 . 4 2 12 18 1 . . . Part Schematic 3 | . . . . . . 3 . . . . . Robot Analysis 1 | . . 1 . . . . . . . . . Prototype ID Bank 14 | . 2 3 . . . 2 7 . . . . Open Door 2 | . . . . . . . 2 . . . . Level Access Points 1 | . . . . . . . 1 . . . . Branch Access Points 4 | . . 1 . 1 . 1 . 1 . . . Emergency Access Points 2 | . 1 . . . 1 . . . . . . Terminal Index 4 | . 1 1 . . . 1 1 . . . . Recycling Unit Index 2 | . . 1 . . . . 1 . . . . Alert Level 5 | . . 1 . 1 . 2 1 . . . . Unreport Threat 5 | . . . . . . 3 2 . . . . Locate Traps 2 | . . . . 1 . . 1 . . . . Dispatch Records 1 | . . . . . . . 1 . . . . Recall Investigation 1 | . . 1 . . . . . . . . . Registered Components 3 | . . 1 . 1 . . 1 . . . . Security Stations 1 | . . . . . 1 . . . . . . Fabricator Hacks . | . . . . . . . . . . . . Repair Station Hacks 13 | . . 7 . . . . 4 2 . . . Scan Component 7 | . . 4 . . . . 2 1 . . . Repair 6 | . . 3 . . . . 2 1 . . . Recycling Unit Hacks . | . . . . . . . . . . . . Scanalyzer 5 | . . 1 . . . . . 4 . . . Insert Component 1 | . . . . . . . . 1 . . . Analyze 1 | . . . . . . . . 1 . . . Retrieve Study 3 | . . 1 . . . . . 2 . . . Garrison Access Hacks 3 | . . . . 1 . 1 1 . . . . Unlock Access 2 | . . . . 1 . 1 . . . . . Seal Access 1 | . . . . . . . 1 . . . . Unauthorized Hacks 46 | . 6 14 . 6 3 4 10 3 . . . Terminals 44 | . 6 12 . 6 3 4 10 3 . . . Track 1 | . . . . . 1 . . . . . . Assimilate 3 | . . 2 . 1 . . . . . . . Botnet 15 | . 2 2 . 2 2 3 3 1 . . . Operators 5 | . 1 1 . 1 . 1 1 . . . . Skim 20 | . 3 7 . 2 . . 6 2 . . . Fabricators . | . . . . . . . . . . . . Repair Stations 1 | . . 1 . . . . . . . . . Patch 1 | . . 1 . . . . . . . . . Recycling Units 1 | . . 1 . . . . . . . . . Tunnel 1 | . . 1 . . . . . . . . . Scanalyzers . | . . . . . . . . . . . . Garrison Access . | . . . . . . . . . . . . Data Cores Recovered 1 | . . . . . . . 1 . . . . Used . | . . . . . . . . . . . . Hacking Detections 43 | . 5 12 . 3 4 8 7 4 . . . Full Trace Events 4 | . . 1 . . . 3 . . . . . Feedback Events 1 | . . . . . . 1 . . . . . Hackware Fried 1 | . . . . . . 1 . . . . . Feedback Blocked . | . . . . . . . . . . . . Robot Schematics Acquired 4 | . . . . . . . . . . . 4 Robots Built . | . . . . . . . . . . . . Authchips . | . . . . . . . . . . . . Time . | . . . . . . . . . . . . Total Robot Build Rating . | . . . . . . . . . . . . Part Schematics Acquired 18 | . . . . . . 3 . 1 . . 14 Parts Built . | . . . . . . . . . . . . Authchips . | . . . . . . . . . . . . Time . | . . . . . . . . . . . . Total Part Build Rating . | . . . . . . . . . . . . Part Studies Acquired 3 | . . 1 . . . . . 2 . . . Parts Repaired 6 | . . 3 . . . . 2 1 . . . Time 191 | . . 84 . . . . 88 19 . . . Parts Recycled . | . . . . . . . . . . . . Recycled Matter . | . . . . . . . . . . . . Retrieved Matter . | . . . . . . . . . . . . Retrieved Components . | . . . . . . . . . . . . Parts Scanalyzed 1 | . . . . . . . . 1 . . . Part Schematics Acquired 1 | . . . . . . . . 1 . . . Parts Damaged 1 | . . . . . . . . 1 . . . Bothacking | -11 -10 -9 -9 -8 -8 -8 -8 -7 -7 -7 -7 ------------ Run | Yrd Mat Mat Min Mat Gar Mat Sto Fac Low Low Zio Used RIF Installer . | . . . . . . . . . . . . Robots Hacked . | . . . . . . . . . . . . Non-combat . | . . . . . . . . . . . . Combat . | . . . . . . . . . . . . Robot Hacks Applied . | . . . . . . . . . . . . Relay Couplers Released 26 | . . . . . 26 . . . . . . Machine Destruction 26 | . . . . . 26 . . . . . . Fabnet Peak Effective % . | . . . . . . . . . . . . Robots Rewired 4 | . . . . . 4 . . . . . . Allies Hacked . | . . . . . . . . . . . . Hacks Repelled . | . . . . . . . . . . . . Allies | -11 -10 -9 -9 -8 -8 -8 -8 -7 -7 -7 -7 -------- Run | Yrd Mat Mat Min Mat Gar Mat Sto Fac Low Low Zio Total Allies 10 | . . 1 1 . 4 . . . . . 4 Largest Group 4 | . . 1 1 1 4 . . . . . 4 Highest-Rated Group 130 | . . 10 31 31 96 . . . . . 130 Highest-Rated Ally 51 | . . 10 31 31 24 . . . . . 51 Initial Warlord ECA Mod 13 | . . . . . . 13 13 12 12 12 12 Total Orders . | . . . . . . . . . . . . Ally Attacks 19 | . . . . . 19 . . . . . . Total Damage 423 | . . . . . 423 . . . . . . Kills 2 | . . . . . 2 . . . . . . Allies Corrupted . | . . . . . . . . . . . . Allies Melted . | . . . . . . . . . . . . Intel | -11 -10 -9 -9 -8 -8 -8 -8 -7 -7 -7 -7 ------- Run | Yrd Mat Mat Min Mat Gar Mat Sto Fac Low Low Zio Active Infowar (turns) 11093 | 8 1182 1463 1708 861 1746 568 188 383 971 973 1042 Sensors 2950 | . . . . . . . . . 964 944 1042 Terrain 733 | . . 733 . . . . . . . . . Seismic 9026 | 8 1182 1110 1708 861 50 560 188 383 971 971 1034 Jamming 1704 | . . . . . 1696 8 . . . . . Robot Analysis Total 1 | . . 1 . . . . . . . . . Derelict Logs Recovered 6 | . . . 3 . . . . . 1 2 . Drone Launches . | . . . . . . . . . . . . Drone Recoveries . | . . . . . . . . . . . . Exploration | -11 -10 -9 -9 -8 -8 -8 -8 -7 -7 -7 -7 ------------- Run | Yrd Mat Mat Min Mat Gar Mat Sto Fac Low Low Zio Turns Passed 14567 | 114 1325 2611 1708 861 1746 1265 1327 389 971 1061 1189 Spaces Moved 7865 | 44 504 1235 650 380 865 625 699 275 849 777 962 Core 5 | 5 . . . . . . . . . . . Treads 3722 | 39 462 1215 650 380 865 111 . . . . . Legs 4138 | . 42 20 . . . 514 699 275 849 777 962 Wheels . | . . . . . . . . . . . . Hover . | . . . . . . . . . . . . Flight . | . . . . . . . . . . . . Fastest Speed 50 | 50 160 160 160 160 160 120 120 105 105 105 105 Average Speed 135 | 147 181 160 160 160 160 127 120 105 105 105 108 Slowest Speed 260 | 160 240 240 160 160 160 260 190 120 105 175 210 Overloaded Moves . | . . . . . . . . . . . . Propulsion Burnouts . | . . . . . . . . . . . . Robots Hopped . | . . . . . . . . . . . . Potential Cave-ins . | . . . . . . . . . . . . Cave-ins Triggered . | . . . . . . . . . . . . Exploration Rate (%) 68 | 4 79 84 97 40 95 48 94 10 91 93 86 Regions Visited 11 Branch Regions 5 Pre-discovered Areas 13 | . . 4 1 . . . 3 . 1 1 3 Known Exits Taken 8 | . . 1 1 1 . 1 1 1 1 1 . Unknown Exits Taken 2 | 1 1 . . . . . . . . . . Scrap Searched 11 | . . . 1 . . . . . 2 5 3 Spaces Dug 127 | . . 6 . 23 11 7 73 5 . 2 . Terrain Destroyed 416 | . . 58 . 81 104 36 78 46 1 10 2 Melee . | . . . . . . . . . . . . Projectile 47 | . . . . 13 8 3 5 7 1 10 . AOE 369 | . . 58 . 68 96 33 73 39 . . 2 Terrain Rammed . | . . . . . . . . . . . . Walls Destroyed . | . . . . . . . . . . . . Machines Disabled . | . . . . . . . . . . . . Actions | -11 -10 -9 -9 -8 -8 -8 -8 -7 -7 -7 -7 --------- Run | Yrd Mat Mat Min Mat Gar Mat Sto Fac Low Low Zio Total 10746 | 69 777 1671 1301 540 1062 938 1074 351 918 961 1084 Wait 1871 | 4 162 199 639 63 41 177 273 54 62 135 62 Move 7855 | 43 503 1234 649 380 864 624 698 274 848 776 962 Hop . | . . . . . . . . . . . . Pick Up 119 | 3 15 40 1 11 9 12 9 1 1 3 14 Fast Attach 36 | 7 2 8 . . . 6 9 1 . 1 2 Attach 45 | . 6 7 . 3 4 4 . 2 . 4 15 Detach 3 | . . . . . . . . . . . 3 Swap 111 | 2 9 30 . 15 11 19 8 3 1 8 5 Drop 113 | . 8 44 1 15 8 13 17 1 . 2 4 Fire 556 | 10 66 106 8 51 105 81 60 15 6 32 16 Melee . | . . . . . . . . . . . . Ram . | . . . . . . . . . . . . Kick 3 | . . . . . . 2 . . . . 1 Crush 14 | . 6 3 3 2 . . . . . . . Escape Stasis . | . . . . . . . . . . . . Rewire 20 | . . . . . 20 . . . . . . Trap . | . . . . . . . . . . . . Miscellaneous . | . . . . . . . . . . . . Route ------- -11/Scrapyard -10/Materials (discovered 5 exits: *Mat x3 / [*Min] / [*Sub]) -9/Materials (discovered 4 exits: *Mat x3 / *Min) -9/Mines (discovered 3 exits: *Mat x2 / *Zio) -8/Materials (discovered 3 exits: *Fac / Sto / Gar) -8/Garrison (discovered 4 exits: *Fac x3 / *Mat) -8/Materials (discovered 4 exits: *Fac / *Sto x2 / Gar) -8/Storage (discovered 2 exits: *Fac / *Rec) -7/Factory (discovered 3 exits: [*Fac] / *Low x2) -7/Lower Caves -7/Lower Caves (discovered 2 exits: [*Fac] / *Zio) -7/Zion (discovered 1 exit: *Pro) History --------- Turn | Location | Event 9 | -11/Scrapyard | Discovered new exit (range 14) 115 | -11/Scrapyard | Entered Materials 306 | -10/Materials | Build established: Mutant 455 | -10/Materials | Discovered new exit (range 9) 685 | -10/Materials | Discovered new exit (range 16) 700 | -10/Materials | Discovered new exit (range 7) 852 | -10/Materials | Core integrity fell below 50% 923 | -10/Materials | Lost 3 parts (1p1n1w) 1054 | -10/Materials | Core integrity fell below 20% 1090 | -10/Materials | Discovered new exit (range 6) 1339 | -10/Materials | Discovered new exit (range 15) 1440 | -10/Materials | Entered another Materials area 1440 | -9/Materials | Evolved 2 slots: Utility x2 1585 | -9/Materials | Build established: Scavenger-Mutant 1731 | -9/Materials | Discovered new exit (range 13) 1882 | -9/Materials | Central database locked down 2098 | -9/Materials | Repaired Hvy. Assault Rifle+ 2125 | -9/Materials | Repaired Lgt. Treads 2153 | -9/Materials | Repaired Lgt. Treads 2798 | -9/Materials | Discovered new exit (range 9) 2898 | -9/Materials | Identified exit to Mines 3079 | -9/Materials | Learned location of Storage (-8) 3187 | -9/Materials | Build established: Hacker-Mutant 3192 | -9/Materials | Identified exit to Materials 3280 | -9/Materials | Learned Storage emergency access door positions 3336 | -9/Materials | Learned 2 Storage zone layouts 3995 | -9/Materials | Build established: Mutant 4051 | -9/Materials | Entered Mines 4129 | -9/Mines | Core integrity fell below 50% 4146 | -9/Mines | A Derelict revealed a hidden shortcut to a safe place 4188 | -9/Mines | Learned location of Zion (-7) 4191 | -9/Mines | Learned Materials trap positions 4191 | -9/Mines | Discovered exit to Materials (range 6) 4357 | -9/Mines | Found a hidden stash of uninstalled traps 4538 | -9/Mines | Learned location of 1 exit from Lower Caves 4573 | -9/Mines | Assembled infested the area 4578 | -9/Mines | Assisted by a Guerilla fighting off Assembled 5600 | -9/Mines | Discovered exit to Materials (range 10) 5614 | -9/Mines | Received a Mining Laser from a helpful Derelict 5759 | -9/Mines | Entered Materials 5759 | -8/Materials | Accompanied by 1 ally 5759 | -8/Materials | Evolved 2 slots: Propulsion x1, Utility x1 5760 | -8/Materials | Loaded intel: 19 trap records 6202 | -8/Materials | Build established: Hacker-Mutant 6270 | -8/Materials | Identified exit to Storage 6331 | -8/Materials | Discovered new exit (range 15) 6620 | -8/Materials | Identified exit to Garrison 6620 | -8/Materials | Entered Garrison 6672 | -8/Garrison | Triggered checkpoint 6724 | -8/Garrison | Garrison Relay disabled 6858 | -8/Garrison | Triggered checkpoint 6991 | -8/Garrison | Discovered new exit (range 10) 7028 | -8/Garrison | Triggered checkpoint 7049 | -8/Garrison | Garrison Relay disabled 7183 | -8/Garrison | Triggered checkpoint 7234 | -8/Garrison | Triggered checkpoint 7274 | -8/Garrison | Garrison Relay disabled 7343 | -8/Garrison | Garrison Relay disabled 7420 | -8/Garrison | Triggered checkpoint 7642 | -8/Garrison | Triggered checkpoint 7674 | -8/Garrison | Garrison Relay disabled 7689 | -8/Garrison | Learned Factory security intel 7758 | -8/Garrison | Discovered new exit (range 14) 7762 | -8/Garrison | Triggered checkpoint 7766 | -8/Garrison | Lost 3 allies 7805 | -8/Garrison | Discovered new exit (range 3) 7940 | -8/Garrison | Triggered checkpoint 8021 | -8/Garrison | Phase Generator disabled 8087 | -8/Garrison | Triggered checkpoint 8117 | -8/Garrison | Garrison Relay disabled 8147 | -8/Garrison | Discovered new exit (range 15) 8366 | -8/Garrison | Entered Materials 8659 | -8/Materials | System Shield fried by hacking feedback 8870 | -8/Materials | Core integrity fell below 50% 9329 | -8/Materials | Discovered new exit (range 15) 9337 | -8/Materials | Central database locked down 9566 | -8/Materials | Identified exit to Garrison 9631 | -8/Materials | Entered Storage 9632 | -8/Storage | Identified exit to Recycling 9633 | -8/Storage | Identified exit to Factory 9935 | -8/Storage | Repaired Imp. Carbon-fiber Leg 9984 | -8/Storage | Repaired Imp. Carbon-fiber Leg 10002 | -8/Storage | Watched by a mysterious "MATRIX" hacker. 10013 | -8/Storage | Met 01-MTF 10096 | -8/Storage | Used back door to open Recycling access 10537 | -8/Storage | Learned location of Lower Caves (-6) 10584 | -8/Storage | Learned 2 Lower Caves zone layouts 10654 | -8/Storage | Learned Factory trap positions 10697 | -8/Storage | Core integrity fell below 20% 10820 | -8/Storage | Learned location of Recycling (-8) 10958 | -8/Storage | Entered Factory 10958 | -7/Factory | Accompanied by 1 ally (01-MTF) 10958 | -7/Factory | Evolved 2 slots: Utility x2 10959 | -7/Factory | Loaded intel: 104 trap records 10961 | -7/Factory | 01-MTF left 11064 | -7/Factory | Identified exit to Lower Caves 11204 | -7/Factory | Repaired Carbon-fiber Leg+ 11265 | -7/Factory | Discovered new exit (range 9) 11347 | -7/Factory | Entered Lower Caves 11348 | -7/Lower Caves | Identified exit to Lower Caves 11356 | -7/Lower Caves | Met a Warlord Commander 11357 | -7/Lower Caves | Learned location of Warlord (-4) 11358 | -7/Lower Caves | Warlord Commander delivered Encrypted Comm Array 11363 | -7/Lower Caves | Found Encrypted Comm Array 11611 | -7/Lower Caves | Spotted B-75 Beast 12063 | -7/Lower Caves | Learned Factory security intel 12318 | -7/Lower Caves | Entered another Lower Caves area 12438 | -7/Lower Caves | Discovered new exit (range 6) 12806 | -7/Lower Caves | Spotted B-75 Beast 12918 | -7/Lower Caves | Learned location of 1 exit from Factory 12928 | -7/Lower Caves | Found DCF Scrap (14 items) 13129 | -7/Lower Caves | Ambushed by research squad 13197 | -7/Lower Caves | Lost 4 parts (1n2u1w) 13351 | -7/Lower Caves | Discovered new exit (range 10) 13371 | -7/Lower Caves | Ambushed by wild Derelicts 13378 | -7/Lower Caves | Identified exit to Zion 13379 | -7/Lower Caves | Entered Zion 13419 | -7/Zion | System corruption cleaned by Quarantine Array 13483 | -7/Zion | Gained Derelict followers 13491 | -7/Zion | Discovered new exit (range 8) 13498 | -7/Zion | Identified exit to Proximity Caves 13855 | -7/Zion | Found Prototype Special Weapon 13857 | -7/Zion | Found Prototype Special Weapon 13858 | -7/Zion | Identified RU-N14's Throwing Claymores (x2) 13879 | -7/Zion | Learned location of Armory (-4) 13900 | -7/Zion | Found RU-N14's Throwing Claymores 13965 | -7/Zion | Met Imprinter 14414 | -7/Zion | Attacked by Zionites 14416 | -7/Zion | Destroyed Imprinter 14420 | -7/Zion | Extracted access codes from Imprinter's data core 14467 | -7/Zion | Destroyed 8 combat bots 14484 | -7/Zion | Lost 8 parts (2p1n3u2w) 14484 | -7/Zion | Core integrity fell below 50% 14558 | -7/Zion | Found RU-N14's Throwing Claymores 14561 | -7/Zion | Core integrity fell below 20% 14568 | -7/Zion | Destroyed by DT-ZMQ(z) with Makeshift Laser Last Messages --------------- effect. 14547_ The unstable cave ceiling collapses. 14548_ Mak. Power Source destroyed. 14551_ Critical hit (Burn: +37). 14554_ Imp. Cooling System destroyed. 14558_ 5B-XDJ(z) pulls a Mak. Sword out of the Twisted Machinery. 14558_ Acquired RU-N14's Throwing Claymores. 14560_ KX-BIH(z) destroyed. 14561_ V1-DXG(z) pulls a Mak. Shrapnel Gun out of the Twisted Machinery. 14562_ Mak. Leg destroyed. 14564_ E2-X2N(z) destroyed. 14565_ Mak. Leg destroyed. 14565_ WK-NAV(z) destroyed. 14566_ BU-XPO(l) Carbon-fiber Leg severed. 14566_ BU-XPO(l) destroyed. 14566_ 5B-XDJ(z) destroyed. 14566_ 1T-7H7(l) destroyed. 14568_ The unstable cave ceiling collapses. Map ----- +----------------------------------------------------+ | ???????????????????????????# "#?????#????????? | | ???????????????????????????# #####"#"?????""# | | ???????????????????????????# # #""#""##??"""" | | ?????????????????????????###"##### #""""""""" " | | ????????????????????????##"#"###" " " | | ???????????????###?????##"""""""" "" | | ????????????####"#?????#""" " """# | | ????????????#""""#???####""" """"# | | ????????????" X""#####"#"#"""" """""" | | ????????????# ""#"""#""""" "" """"""" | | ???????????## """""""" """#" " | | ???????????" "" """"" | | ???????????" "" """" | | ???????????# """""""" """" "" """ """#"" [ | | ?????????""""""""##"#"" """" """"""" ""###"% | | ?????????####"#"####""" """" """#""""""###" / | | ????????????######"""" """#"#""""##""" | | ??????????????####""" ""#"""""""""" | | ??????????????#<<&"" "#""" | | ??????????????#<&& z""""" """""" | | ??????????????#<< "" | | ??????????????#" "" | | ??????????????##" " | | ???????????????#"" M " """" "" | | ??????????????###"" " """"" "" | | ??????????#####""""" @ "" """""" " | | ??????????"| """" !=/ """ ""###" | | ??????????" ="# " *%% "" """""" | | ??????????" " """ """ " | | ??????????#" # ! " """"" | | ??????????#""""# /*= ""##" | | ??????????##""## z "" """ """?" | | ???????????####### """"" """ ""##?# | | ?????????????????# z """"" """ """??? | | ?????????????????#" z " "" """#" """ ""##??? | | ?????????????????##" ##"#" ""#"#" """"""##???? | | ????????????????# # ##"" ""##"" """##????? | | ??????????????# # # # " ""###" ""?????? | | ??????????????# # " """""" ""?????? | | ??????????????## # "#"""" ""??????? | | ???????????????# """""""" """"???????? | | ???????????????## """" """#???????? | | ????????????????##" """#???????? | | ????????????????##" """"" " ""##???????? | | ????????????????#"" """""""""" "" #""#???????? | | ????????????????##" ""#""" """ "" ""##???????? | | ????????????????#"" """""" """" " #"##???????? | | ????????#########"" ""#"" """""" """#???????? | | ???????##"#""#""""" """" """" """#???????? | | ?????###"" "" ""#"" "#"" """ #""#???????? | +----------------------------------------------------+ Best States ------------- Heat Dissipation 75 Energy Generation 18 Energy Capacity 310 Matter Stores 300 Matter Capacity 300 Sight Range 16 Robot Scan Range 15 Terrain Scan Range 16 Terrain Scan Density 10 Jamming Range 12 Armor Coverage 150 Utility Shielding 15 Evasion (%) 55 Core Analysis 6 Recoil Reduction 3 Particle Charging 20 Offensive Hacking 10 Defensive Hacking 10 Item Schematics ----------------- System Shield | -8/Materials | Hacked Hacking Suite | -8/Materials | Hacked Structural Scanner | -8/Materials | Hacked Imp. Sensor Array | -7/Factory | Scanalyzed Imp. Field Recycling Unit | -7/Zion | Archive Hvy. Machine Gun | -7/Zion | Archive Med. Treads | -7/Zion | Archive Chainsword | -7/Zion | Archive Lrn. Missile Launcher | -7/Zion | Archive Hvy. Laser | -7/Zion | Archive Enh. Gauss Cannon | -7/Zion | Archive Mass Driver | -7/Zion | Archive Adv. ECM Suite | -7/Zion | Archive Drone Bay | -7/Zion | Archive Plasma Cannon | -7/Zion | Archive Enh. Optical Array | -7/Zion | Archive Thermic Laser | -7/Zion | Archive Imp. Deuterium Engine | -7/Zion | Archive Robot Schematics ------------------ T-07 Excavator | -7/Zion | Archive R-06 Scavenger | -7/Zion | Archive S-27 Virus | -7/Zion | Archive L-61 Swordsman | -7/Zion | Archive Fabricated ------------ Nothing Repaired ---------- Hvy. Assault Rifle | 17% | -9/Materials Lgt. Treads | 30% | -9/Materials Lgt. Treads | 22% | -9/Materials Imp. Carbon-fiber Leg | 27% | -8/Storage Imp. Carbon-fiber Leg | 13% | -8/Storage Carbon-fiber Leg | 22% | -7/Factory Studied --------- Hvy. Assault Rifle | -9/Materials | Hacked Carbon-fiber Leg | -7/Factory | Hacked Imp. Carbon-fiber Leg | -7/Factory | Hacked Alien Tech Used ----------------- None Achievements -------------- None Challenges ------------ None Game ------ Seed VariableZeronetClaw Manual? 0 Play Time 01:25:41 Cumulative 325.0 hours Start 2026.01.27 @ 12:18:38 End 2026.01.27 @ 13:42:47 Sessions 1 Manual Loads 0 Difficulty Rogue Special Mode None Game No. 214 Rogue 214 Adventurer 0 Explorer 0 Win Type - Total 12 Types 8/1/1/1/0/0/0/1/0/0 Lore% 92 Gallery% 80 Achievement% 66 Wizard Run 0 Options --------- Layout 1 ASCII 0 Keyboard 0 Movement Mouse Keybinds 0 Fullscreen 2 Font 32/SmallcapsGlow Map View 50x35 Zoom Use 0% Tactical HUD 1 Map Filters NONE Filters NONE Steam 1 RUN: 367f33c5-b00f-4828-936c-68f4cebdee32